fUST/lending_fUST_20260528
["ID","MTS","AMOUNT","RATE_DAILY","PERIOD"]
[423225391,1779952185000,-1000.0,7.211e-05,2]
[423225390,1779952185000,-1000.0,7.211e-05,2]
[423225393,1779952186000,-1000.0,7.211e-05,2]
[423225395,1779952186000,-1000.0,7.211e-05,2]
[423225394,1779952186000,-1000.0,7.211e-05,2]
[423225396,1779952189000,-1000.0,7.211e-05,2]
[423225397,1779952190000,-1000.0,7.211e-05,2]
[423225398,1779952192000,-1000.0,7.211e-05,2]
[423225399,1779952193000,-1000.0,7.211e-05,2]
[423225401,1779952194000,-1000.0,7.211e-05,2]
[423225400,1779952194000,-1000.0,7.211e-05,2]
[423225402,1779952195000,-1000.0,7.211e-05,2]
[423225403,1779952196000,-1000.0,7.211e-05,2]
[423225404,1779952197000,-1000.0,7.211e-05,2]
[423225405,1779952223000,-5000.0,7.211e-05,2]
[423225406,1779952224000,-71.68898569,7.211e-05,2]
[423225721,1779952234000,-500.0,7.718e-05,2]
[423225720,1779952234000,-135.92923546,7.718e-05,2]
[423225709,1779952234000,-433.45811007,7.718e-05,2]
[423225716,1779952234000,-66.54188993,7.718e-05,2]
[423225718,1779952234000,-174.87173618,7.718e-05,2]
[423225717,1779952234000,-325.12826382,7.718e-05,2]
[423225719,1779952234000,-364.07076454,7.718e-05,2]
[423225724,1779952234000,-500.0,7.718e-05,2]
[423225728,1779952234000,-500.0,7.718e-05,2]
[423225729,1779952234000,-500.0,7.718e-05,2]
[423225723,1779952234000,-500.0,7.718e-05,2]
[423225726,1779952234000,-500.0,7.718e-05,2]
[423225725,1779952234000,-500.0,7.718e-05,2]
[423225731,1779952234000,-16.07076454,7.719e-05,2]
[423225727,1779952234000,-500.0,7.718e-05,2]
[423225730,1779952234000,-500.0,7.718e-05,2]
[423225722,1779952234000,-500.0,7.718e-05,2]
[423225971,1779952247000,-500.0,8.219e-05,2]
[423225972,1779952247000,-500.0,8.219e-05,2]
[423225969,1779952247000,-500.0,8.219e-05,2]
[423225966,1779952247000,-500.0,8.219e-05,2]
[423225967,1779952247000,-1242.13,8.219e-05,2]
[423225968,1779952247000,-395.08570767,8.219e-05,2]
[423225965,1779952247000,-501.01711588,8.219e-05,2]
[423225964,1779952247000,-500.0,8.219e-05,2]
[423225961,1779952247000,-500.0,8.219e-05,2]
[423225976,1779952247000,-551.5128906,8.219e-05,2]
[423225973,1779952247000,-526.86898462,8.219e-05,2]
[423225977,1779952247000,-528.75615608,8.219e-05,2]
[423225970,1779952247000,-283.34715702,8.219e-05,2]
[423225975,1779952247000,-500.0,8.219e-05,2]
[423225979,1779952247000,-249.64966195,8.219e-05,2]
[423225982,1779952247000,-186.31648191,8.219e-05,2]
[423225980,1779952247000,-500.0,8.219e-05,2]
[423225986,1779952247000,-500.0,8.219e-05,2]
[423225981,1779952247000,-500.0,8.219e-05,2]
[423225983,1779952247000,-500.0,8.219e-05,2]
[423225984,1779952247000,-500.0,8.219e-05,2]
[423225978,1779952247000,-500.0,8.219e-05,2]
[423225958,1779952247000,-571.61,8.219e-05,2]
[423225974,1779952247000,-500.0,8.219e-05,2]
[423225957,1779952247000,-500.0,8.219e-05,2]
[423225936,1779952247000,-500.0,7.718e-05,2]
[423225956,1779952247000,-337.45248689,8.219e-05,2]
[423225988,1779952247000,-500.0,8.493e-05,2]
[423225935,1779952247000,-500.0,7.718e-05,2]
[423225937,1779952247000,-500.0,7.718e-05,2]
[423225938,1779952247000,-500.0,7.718e-05,2]
[423225939,1779952247000,-555.45440152,7.718e-05,2]
[423225941,1779952247000,-5000.0,8e-05,2]
[423225951,1779952247000,-500.0,8.219e-05,2]
[423225949,1779952247000,-500.0,8.219e-05,2]
[423225950,1779952247000,-500.0,8.219e-05,2]
[423225940,1779952247000,-88606.18967072,7.719e-05,2]
[423225945,1779952247000,-315.56610165,8.219e-05,2]
[423225955,1779952247000,-190.42398437,8.219e-05,2]
[423225947,1779952247000,-578.16422924,8.219e-05,2]
[423225946,1779952247000,-500.0,8.219e-05,2]
[423225943,1779952247000,-2478.37397115,8.02e-05,2]
[423225942,1779952247000,-3849.44464591,8e-05,2]
[423225944,1779952247000,-500.0,8.219e-05,2]
[423225952,1779952247000,-1174.53,8.219e-05,2]
[423225954,1779952247000,-500.0,8.219e-05,2]
[423225960,1779952247000,-500.0,8.219e-05,2]
[423225962,1779952247000,-500.0,8.219e-05,2]
[423225963,1779952247000,-500.0,8.219e-05,2]
[423225959,1779952247000,-500.0,8.219e-05,2]
[423225953,1779952247000,-525.91736994,8.219e-05,2]
[423225948,1779952247000,-506.01560502,8.219e-05,2]
[423225987,1779952247000,-1390.4052039,8.443e-05,2]
[423225993,1779952247000,-500.0,8.493e-05,2]
[423225990,1779952247000,-257.88915512,8.493e-05,2]
[423226020,1779952247000,-500.0,8.767e-05,2]
[423226021,1779952247000,-500.0,8.767e-05,2]
[423226029,1779952247000,-500.0,8.767e-05,2]
[423226022,1779952247000,-500.0,8.767e-05,2]
[423226024,1779952247000,-1242.13,8.767e-05,2]
[423226028,1779952247000,-500.0,8.767e-05,2]
[423226023,1779952247000,-500.0,8.767e-05,2]
[423226026,1779952247000,-500.0,8.767e-05,2]
[423226031,1779952247000,-500.0,8.767e-05,2]
[423226018,1779952247000,-500.0,8.767e-05,2]
[423226030,1779952247000,-500.0,8.767e-05,2]
[423226019,1779952247000,-500.0,8.767e-05,2]
[423226025,1779952247000,-254.05728969,8.767e-05,2]
[423226032,1779952247000,-500.0,8.767e-05,2]
[423226034,1779952247000,-393.92534843,9.041e-05,2]
[423226035,1779952247000,-571.61,9.041e-05,2]
[423226037,1779952247000,-500.0,9.041e-05,2]
[423226041,1779952247000,-500.0,9.041e-05,2]
[423226038,1779952247000,-500.0,9.041e-05,2]
[423226042,1779952247000,-500.0,9.041e-05,2]
[423226036,1779952247000,-500.0,9.041e-05,2]
[423226033,1779952247000,-1174.53,9.041e-05,2]
[423226039,1779952247000,-500.0,9.041e-05,2]
[423225985,1779952247000,-500.0,8.219e-05,2]
[423226027,1779952247000,-500.0,8.767e-05,2]
[423226017,1779952247000,-500.0,8.767e-05,2]
[423226040,1779952247000,-500.0,9.041e-05,2]
[423226010,1779952247000,-500.0,8.493e-05,2]
[423226000,1779952247000,-500.0,8.493e-05,2]
[423226001,1779952247000,-500.0,8.493e-05,2]
[423226002,1779952247000,-1242.13,8.493e-05,2]
[423225989,1779952247000,-491.91215453,8.493e-05,2]
[423225992,1779952247000,-1174.53,8.493e-05,2]
[423225991,1779952247000,-500.0,8.493e-05,2]
[423225999,1779952247000,-500.0,8.493e-05,2]
[423226011,1779952247000,-500.0,8.493e-05,2]
[423225995,1779952247000,-500.0,8.493e-05,2]
[423225997,1779952247000,-500.0,8.493e-05,2]
[423225998,1779952247000,-500.0,8.493e-05,2]
[423225996,1779952247000,-500.0,8.493e-05,2]
[423225994,1779952247000,-571.61,8.493e-05,2]
[423226005,1779952247000,-547.05520892,8.493e-05,2]
[423226006,1779952247000,-500.0,8.493e-05,2]
[423226003,1779952247000,-500.0,8.493e-05,2]
[423226008,1779952247000,-500.0,8.493e-05,2]
[423226015,1779952247000,-500.0,8.767e-05,2]
[423226009,1779952247000,-500.0,8.493e-05,2]
[423226013,1779952247000,-374.44007714,8.767e-05,2]
[423226014,1779952247000,-1174.53,8.767e-05,2]
[423226016,1779952247000,-571.61,8.767e-05,2]
[423226007,1779952247000,-500.0,8.493e-05,2]
[423226004,1779952247000,-500.0,8.493e-05,2]
[423226012,1779952247000,-643.16581929,8.767e-05,2]
[423226079,1779952248000,-500.0,9.589e-05,2]
[423226078,1779952248000,-500.0,9.589e-05,2]
[423226073,1779952248000,-152.0,9.452e-05,2]
[423226075,1779952248000,-571.61,9.589e-05,2]
[423226061,1779952248000,-500.0,9.315e-05,2]
[423226077,1779952248000,-500.0,9.589e-05,2]
[423226074,1779952248000,-1174.53,9.589e-05,2]
[423226063,1779952248000,-500.0,9.315e-05,2]
[423226076,1779952248000,-500.0,9.589e-05,2]
[423226080,1779952248000,-500.0,9.589e-05,2]
[423226092,1779952248000,-500.0,9.863e-05,2]
[423226082,1779952248000,-1242.13,9.589e-05,2]
[423226084,1779952248000,-287.88573066,9.589e-05,2]
[423226094,1779952248000,-500.0,9.863e-05,2]
[423226083,1779952248000,-500.0,9.589e-05,2]
[423226085,1779952248000,-306.84778584,9.589e-05,2]
[423226090,1779952248000,-1174.53,9.863e-05,2]
[423226086,1779952248000,-500.0,9.589e-05,2]
[423226087,1779952248000,-500.0,9.589e-05,2]
[423226088,1779952248000,-500.0,9.589e-05,2]
[423226093,1779952248000,-500.0,9.863e-05,2]
[423226072,1779952248000,-152.0,9.435e-05,2]
[423226081,1779952248000,-500.0,9.589e-05,2]
[423226071,1779952248000,-508.4335535,9.387e-05,2]
[423226052,1779952248000,-450.39418345,9.21e-05,2]
[423226066,1779952248000,-500.0,9.315e-05,2]
[423226089,1779952248000,-218.79010969,9.589e-05,2]
[423226044,1779952248000,-500.0,9.041e-05,2]
[423226043,1779952248000,-1242.13,9.041e-05,2]
[423226046,1779952248000,-500.0,9.041e-05,2]
[423226058,1779952248000,-500.0,9.315e-05,2]
[423226056,1779952248000,-584.5626032,9.315e-05,2]
[423226057,1779952248000,-500.0,9.315e-05,2]
[423226045,1779952248000,-500.0,9.041e-05,2]
[423226048,1779952248000,-500.0,9.041e-05,2]
[423226050,1779952248000,-500.0,9.041e-05,2]
[423226054,1779952248000,-571.61,9.315e-05,2]
[423226067,1779952248000,-500.0,9.315e-05,2]
[423226049,1779952248000,-500.0,9.041e-05,2]
[423226047,1779952248000,-500.0,9.041e-05,2]
[423226055,1779952248000,-500.0,9.315e-05,2]
[423226051,1779952248000,-152.0,9.149e-05,7]
[423226059,1779952248000,-500.0,9.315e-05,2]
[423226062,1779952248000,-1242.13,9.315e-05,2]
[423226065,1779952248000,-500.0,9.315e-05,2]
[423226060,1779952248000,-500.0,9.315e-05,2]
[423226069,1779952248000,-500.0,9.315e-05,2]
[423226064,1779952248000,-500.0,9.315e-05,2]
[423226070,1779952248000,-3450.1935932,9.387e-05,2]
[423226068,1779952248000,-500.0,9.315e-05,2]
[423226053,1779952248000,-1174.53,9.315e-05,2]
[423226091,1779952248000,-571.61,9.863e-05,2]
[423226106,1779952248000,-184.4,0.00010136,2]
[423226098,1779952248000,-500.0,9.863e-05,2]
[423226126,1779952248000,-571.61,0.00010684,2]
[423226127,1779952248000,-390.94,0.00010684,2]
[423226124,1779952248000,-3115.42251777,0.000106,2]
[423226129,1779952248000,-1242.13,0.00010684,2]
[423226128,1779952248000,-161.26,0.00010684,2]
[423226130,1779952248000,-629.20743329,0.00010684,2]
[423226133,1779952248000,-1223.31,0.00010736,2]
[423226144,1779952248000,-1242.13,0.00010958,2]
[423226134,1779952248000,-502.24071857,0.00010768,2]
[423226136,1779952248000,-3115.42251777,0.000108,2]
[423226137,1779952248000,-636.62,0.00010851,2]
[423226132,1779952248000,-1293.85,0.00010736,2]
[423226143,1779952248000,-571.61,0.00010958,2]
[423226135,1779952248000,-537.6845,0.00010768,2]
[423226138,1779952248000,-185.0,0.00010851,2]
[423226139,1779952248000,-443.0,0.00010851,2]
[423226095,1779952248000,-1242.13,9.863e-05,2]
[423226142,1779952248000,-1174.53,0.00010958,2]
[423226140,1779952248000,-3115.42251777,0.000109,2]
[423226145,1779952248000,-200.0,0.00010959,2]
[423226148,1779952248000,-52356.06613092,0.00011,2]
[423226147,1779952248000,-10604.2663531,0.00010959,2]
[423226146,1779952248000,-184.06873358,0.00010959,3]
[423226125,1779952248000,-1174.53,0.00010684,2]
[423226123,1779952248000,-3115.42251777,0.000105,2]
[423226141,1779952248000,-1414.0,0.00010946,2]
[423226131,1779952248000,-1160.67,0.00010708,2]
[423226097,1779952248000,-500.0,9.863e-05,2]
[423226099,1779952248000,-500.0,9.863e-05,2]
[423226103,1779952248000,-571.61,0.00010136,2]
[423226101,1779952248000,-672.66686958,0.00010098,2]
[423226104,1779952248000,-500.0,0.00010136,2]
[423226096,1779952248000,-243.79863468,9.863e-05,2]
[423226100,1779952248000,-600.0,0.00010059,2]
[423226105,1779952248000,-500.0,0.00010136,2]
[423226102,1779952248000,-1174.53,0.00010136,2]
[423226115,1779952248000,-1174.53,0.0001041,2]
[423226117,1779952248000,-500.0,0.0001041,2]
[423226108,1779952248000,-500.0,0.00010136,2]
[423226119,1779952248000,-1242.13,0.0001041,2]
[423226121,1779952248000,-500.0,0.0001041,2]
[423226120,1779952248000,-500.0,0.0001041,2]
[423226116,1779952248000,-571.61,0.0001041,2]
[423226111,1779952248000,-160.0,0.00010215,2]
[423226113,1779952248000,-3115.42251777,0.000103,2]
[423226114,1779952248000,-3115.42251777,0.000104,2]
[423226110,1779952248000,-3115.42251777,0.000102,2]
[423226112,1779952248000,-160.0,0.00010215,2]
[423226107,1779952248000,-1242.13,0.00010136,2]
[423226118,1779952248000,-500.0,0.0001041,2]
[423226109,1779952248000,-500.0,0.00010136,2]
[423226122,1779952248000,-307.70993,0.00010431,7]
[423226153,1779952536000,162.7143,0.00019177,120]
[423226163,1779953019000,-380.99337024,6.967e-05,2]
[423226162,1779953019000,-502.5140655,6.75e-05,2]
[423226164,1779953019000,-4116.49256426,7.519e-05,2]
[423226165,1779953026000,-5000.0,7.519e-05,2]
[423226171,1779953032000,-5000.0,7.519e-05,2]
[423226173,1779953042000,-4700.0,7.519e-05,2]
[423226172,1779953042000,-300.0,7.518e-05,2]
[423226174,1779953048000,-5000.0,7.519e-05,2]
[423226176,1779953061000,-2478.0,7.519e-05,2]
[423226187,1779953084000,-500.0,7.518e-05,2]
[423226188,1779953084000,-500.0,7.518e-05,2]
[423226186,1779953084000,-500.0,7.518e-05,2]
[423226185,1779953084000,-500.0,7.518e-05,2]
[423226183,1779953084000,-500.0,7.518e-05,2]
[423226182,1779953084000,-500.0,7.518e-05,2]
[423226184,1779953084000,-500.0,7.518e-05,2]
[423226181,1779953084000,-500.0,7.518e-05,2]
[423226178,1779953084000,-500.0,7.518e-05,2]
[423226180,1779953084000,-500.0,7.518e-05,2]
[423226179,1779953084000,-500.0,7.518e-05,2]
[423226177,1779953084000,-500.0,7.518e-05,2]
[423226190,1779953114000,-269.0,7.517e-05,2]
[423226189,1779953114000,-151.0,7.292e-05,2]
[423226192,1779953114000,-180.0,7.517e-05,2]
[423226191,1779953114000,-300.0,7.517e-05,2]
[423226242,1779953432000,-500.0,7.518e-05,2]
[423226226,1779953432000,-378.78731447,7.517e-05,2]
[423226225,1779953432000,-300.0,7.517e-05,2]
[423226224,1779953432000,-1231.0,7e-05,2]
[423226228,1779953432000,-500.0,7.518e-05,2]
[423226238,1779953432000,-500.0,7.518e-05,2]
[423226230,1779953432000,-500.0,7.518e-05,2]
[423226240,1779953432000,-500.0,7.518e-05,2]
[423226227,1779953432000,-500.0,7.518e-05,2]
[423226229,1779953432000,-206.87857847,7.518e-05,2]
[423226236,1779953432000,-500.0,7.518e-05,2]
[423226231,1779953432000,-500.0,7.518e-05,2]
[423226232,1779953432000,-500.0,7.518e-05,2]
[423226252,1779953432000,-500.0,7.518e-05,2]
[423226237,1779953432000,-500.0,7.518e-05,2]
[423226233,1779953432000,-500.0,7.518e-05,2]
[423226251,1779953432000,-500.0,7.518e-05,2]
[423226249,1779953432000,-158.75335146,7.518e-05,2]
[423226259,1779953432000,-72.73680441,7.518e-05,2]
[423226256,1779953432000,-500.0,7.518e-05,2]
[423226258,1779953432000,-500.0,7.518e-05,2]
[423226245,1779953432000,-500.0,7.518e-05,2]
[423226247,1779953432000,-500.0,7.518e-05,2]
[423226243,1779953432000,-500.0,7.518e-05,2]
[423226234,1779953432000,-500.0,7.518e-05,2]
[423226235,1779953432000,-224.37104311,7.518e-05,2]
[423226254,1779953432000,-500.0,7.518e-05,2]
[423226405,1779953438000,-500.0,7.518e-05,2]
[423226402,1779953438000,-427.26319559,7.518e-05,2]
[423226404,1779953438000,-638.81808106,7.518e-05,2]
[423226406,1779953438000,-500.0,7.518e-05,2]
[423226403,1779953438000,-500.0,7.518e-05,2]
[423226408,1779953438000,-300.0,7.518e-05,2]
[423226407,1779953438000,-500.0,7.518e-05,2]
[423226410,1779953438000,-7003.04248816,7.519e-05,2]
[423226411,1779953438000,-6599.80549148,7.519e-05,2]
[423226409,1779953438000,-1315.46494758,7.519e-05,2]
[423226412,1779953439000,-658.69,7.519e-05,2]
[423226427,1779953442000,-3827.03389679,7.519e-05,2]
[423226441,1779953444000,-511.37744405,7.519e-05,2]
[423226476,1779953454000,-5094.30941809,7.6e-05,2]
[423226469,1779953454000,-6261.42227616,7.519e-05,2]
[423226468,1779953454000,-5177.0,7.519e-05,2]
[423226471,1779953454000,-953.87845248,7.519e-05,2]
[423226472,1779953454000,-471.77632926,7.519e-05,2]
[423226473,1779953454000,-6791.51744111,7.519e-05,2]
[423226474,1779953454000,-729.67770619,7.519e-05,2]
[423226478,1779953454000,-169.85,8e-05,2]
[423226470,1779953454000,-456.0,7.519e-05,2]
[423226481,1779953454000,-169.85,8e-05,2]
[423226475,1779953454000,-9143.59845237,7.519e-05,2]
[423226479,1779953454000,-169.85,8e-05,2]
[423226480,1779953454000,-169.85,8e-05,2]
[423226482,1779953454000,-172.54608622,8e-05,2]
[423226483,1779953454000,-5000.0,8e-05,2]
[423226485,1779953454000,-500.0,8.218e-05,2]
[423226484,1779953454000,-500.0,8.218e-05,2]
[423226477,1779953454000,-178.0470173,7.994e-05,2]
[423226507,1779953455000,-500.0,8.493e-05,2]
[423226517,1779953455000,-797.12,8.767e-05,2]
[423226514,1779953455000,-500.0,8.493e-05,2]
[423226506,1779953455000,-500.0,8.493e-05,2]
[423226515,1779953455000,-636.2,8.767e-05,2]
[423226508,1779953455000,-500.0,8.493e-05,2]
[423226518,1779953455000,-636.2,9.041e-05,2]
[423226516,1779953455000,-500.0,8.767e-05,2]
[423226512,1779953455000,-500.0,8.493e-05,2]
[423226509,1779953455000,-500.0,8.493e-05,2]
[423226505,1779953455000,-636.2,8.493e-05,2]
[423226511,1779953455000,-797.12,8.493e-05,2]
[423226513,1779953455000,-541.3446386,8.493e-05,2]
[423226523,1779953455000,-500.0,9.315e-05,2]
[423226531,1779953455000,-636.2,9.589e-05,2]
[423226510,1779953455000,-349.85756769,8.493e-05,2]
[423226502,1779953455000,-151.5,8.493e-05,2]
[423226498,1779953455000,-441.45168234,8.219e-05,2]
[423226496,1779953455000,-500.0,8.219e-05,2]
[423226521,1779953455000,-417.69645034,9.277e-05,2]
[423226486,1779953455000,-500.0,8.218e-05,2]
[423226487,1779953455000,-363.55757973,8.218e-05,2]
[423226492,1779953455000,-500.0,8.219e-05,2]
[423226490,1779953455000,-500.0,8.219e-05,2]
[423226488,1779953455000,-636.2,8.219e-05,2]
[423226489,1779953455000,-500.0,8.219e-05,2]
[423226504,1779953455000,-200.63426235,8.493e-05,2]
[423226491,1779953455000,-500.0,8.219e-05,2]
[423226494,1779953455000,-236.43362913,8.219e-05,2]
[423226495,1779953455000,-797.12,8.219e-05,2]
[423226501,1779953455000,-227.0,8.269e-05,2]
[423226503,1779953455000,-151.5,8.493e-05,2]
[423226500,1779953455000,-500.0,8.219e-05,2]
[423226497,1779953455000,-500.0,8.219e-05,2]
[423226499,1779953455000,-58.54831766,8.219e-05,2]
[423226493,1779953455000,-500.0,8.219e-05,2]
[423226520,1779953455000,-797.12,9.041e-05,2]
[423226526,1779953455000,-1624.1393427,9.405e-05,2]
[423226530,1779953455000,-446.96903108,9.517e-05,2]
[423226555,1779953455000,-636.2,0.00010958,2]
[423226556,1779953455000,-500.0,0.00010958,2]
[423226546,1779953455000,-1869.25351065,0.000104,2]
[423226552,1779953455000,-636.2,0.00010684,2]
[423226547,1779953455000,-636.2,0.0001041,2]
[423226544,1779953455000,-354.89204871,0.00010287,2]
[423226554,1779953455000,-797.12,0.00010684,2]
[423226545,1779953455000,-1869.25351065,0.000103,2]
[423226549,1779953455000,-797.12,0.0001041,2]
[423226548,1779953455000,-500.0,0.0001041,2]
[423226551,1779953455000,-1869.25351065,0.000106,2]
[423226553,1779953455000,-500.0,0.00010684,2]
[423226519,1779953455000,-500.0,9.041e-05,2]
[423226557,1779953455000,-797.12,0.00010958,2]
[423226559,1779953455000,-3151.23261209,0.00011,2]
[423226560,1779953455000,-1405.38702262,0.00011,2]
[423226550,1779953455000,-1869.25351065,0.000105,2]
[423226533,1779953455000,-797.12,9.589e-05,2]
[423226558,1779953455000,-1956.0,0.00010998,2]
[423226542,1779953455000,-160.0,0.00010191,2]
[423226524,1779953455000,-797.12,9.315e-05,2]
[423226525,1779953455000,-188.0860051,9.405e-05,2]
[423226527,1779953455000,-174.1298899,9.405e-05,2]
[423226534,1779953455000,-636.2,9.863e-05,2]
[423226522,1779953455000,-636.2,9.315e-05,2]
[423226529,1779953455000,-152.0,9.419e-05,7]
[423226537,1779953455000,-172.54608621,9.953e-05,2]
[423226536,1779953455000,-797.12,9.863e-05,2]
[423226539,1779953455000,-500.0,0.00010136,2]
[423226541,1779953455000,-160.0,0.00010191,2]
[423226532,1779953455000,-500.0,9.589e-05,2]
[423226535,1779953455000,-500.0,9.863e-05,2]
[423226538,1779953455000,-636.2,0.00010136,2]
[423226540,1779953455000,-797.12,0.00010136,2]
[423226543,1779953455000,-1869.25351065,0.000102,2]
[423226528,1779953455000,-2771.1674656,9.405e-05,2]
[423226673,1779954632000,-332.30240207,7.106e-05,2]
[423226674,1779954632000,-398.52663624,7.517e-05,7]
[423226668,1779954632000,-300.0,6.986e-05,2]
[423226671,1779954632000,-77.69301994,7.106e-05,2]
[423226815,1779954639000,-500.0,8.218e-05,2]
[423226824,1779954639000,-352.07707965,8.219e-05,2]
[423226819,1779954639000,-499.97,8.218e-05,2]
[423226826,1779954639000,-501.88424725,8.219e-05,2]
[423226823,1779954639000,-500.0,8.219e-05,2]
[423226818,1779954639000,-500.0,8.218e-05,2]
[423226817,1779954639000,-500.0,8.218e-05,2]
[423226821,1779954639000,-500.0,8.219e-05,2]
[423226820,1779954639000,-716.5707,8.219e-05,2]
[423226822,1779954639000,-500.0,8.219e-05,2]
[423226816,1779954639000,-500.0,8.218e-05,2]
[423226814,1779954639000,-500.0,8.218e-05,2]
[423226804,1779954639000,-1067.45341371,7.893e-05,7]
[423226807,1779954639000,-4741.49965786,8e-05,2]
[423226806,1779954639000,-14.29726453,8e-05,2]
[423226809,1779954639000,-1067.45341371,8.118e-05,7]
[423226811,1779954639000,-500.0,8.218e-05,2]
[423226810,1779954639000,-500.0,8.218e-05,2]
[423226812,1779954639000,-500.0,8.218e-05,2]
[423226808,1779954639000,-5000.0,8e-05,2]
[423226805,1779954639000,-300.0,7.999e-05,2]
[423226803,1779954639000,-203.105684,7.734e-05,2]
[423226802,1779954639000,-1067.45341371,7.667e-05,7]
[423226825,1779954639000,-560.52730279,8.219e-05,2]
[423226813,1779954639000,-500.0,8.218e-05,2]
[423226827,1779954639000,-500.0,8.219e-05,2]
[423226801,1779954639000,-668.92677747,7.517e-05,7]
[423226829,1779954639000,-615.92,8.219e-05,2]
[423226852,1779954639000,-582.82,8.219e-05,2]
[423226853,1779954639000,-500.0,8.219e-05,2]
[423226854,1779954639000,-500.0,8.219e-05,2]
[423226851,1779954639000,-371.8,8.219e-05,2]
[423226850,1779954639000,-500.0,8.219e-05,2]
[423226846,1779954639000,-500.0,8.219e-05,2]
[423226849,1779954639000,-500.0,8.219e-05,2]
[423226828,1779954639000,-500.0,8.219e-05,2]
[423226848,1779954639000,-500.0,8.219e-05,2]
[423226842,1779954639000,-500.0,8.219e-05,2]
[423226845,1779954639000,-500.0,8.219e-05,2]
[423226841,1779954639000,-500.0,8.219e-05,2]
[423226847,1779954639000,-500.0,8.219e-05,2]
[423226843,1779954639000,-1849.7,8.219e-05,2]
[423226844,1779954639000,-500.0,8.219e-05,2]
[423226834,1779954639000,-500.0,8.219e-05,2]
[423226831,1779954639000,-420.45782085,8.219e-05,2]
[423226833,1779954639000,-500.0,8.219e-05,2]
[423226830,1779954639000,-233.25457421,8.219e-05,2]
[423226832,1779954639000,-500.0,8.219e-05,2]
[423226836,1779954639000,-176.76,8.219e-05,2]
[423226837,1779954639000,-500.0,8.219e-05,2]
[423226838,1779954639000,-500.0,8.219e-05,2]
[423226840,1779954639000,-500.0,8.219e-05,2]
[423226839,1779954639000,-553.66780374,8.219e-05,2]
[423226835,1779954639000,-500.0,8.219e-05,2]
[423226893,1779954640000,-564.2580156,8.849e-05,2]
[423226898,1779954640000,-500.0,9.041e-05,2]
[423226892,1779954640000,-812.0696714,8.849e-05,2]
[423226891,1779954640000,-560.0508668,8.849e-05,2]
[423226886,1779954640000,-500.0,8.767e-05,2]
[423226889,1779954640000,-420.0,8.799e-05,2]
[423226887,1779954640000,-1849.7,8.767e-05,2]
[423226885,1779954640000,-500.0,8.767e-05,2]
[423226884,1779954640000,-500.0,8.767e-05,2]
[423226890,1779954640000,-2290.6849155,8.849e-05,2]
[423226895,1779954640000,-500.0,9.041e-05,2]
[423226910,1779954640000,-1849.7,9.315e-05,2]
[423226897,1779954640000,-500.0,9.041e-05,2]
[423226900,1779954640000,-500.0,9.041e-05,2]
[423226899,1779954640000,-500.0,9.041e-05,2]
[423226901,1779954640000,-1849.7,9.041e-05,2]
[423226903,1779954640000,-483.79459797,9.106e-05,2]
[423226904,1779954640000,-720.0,9.219e-05,2]
[423226902,1779954640000,-500.0,9.041e-05,2]
[423226911,1779954640000,-500.0,9.315e-05,2]
[423226905,1779954640000,-500.0,9.315e-05,2]
[423226907,1779954640000,-500.0,9.315e-05,2]
[423226906,1779954640000,-500.0,9.315e-05,2]
[423226888,1779954640000,-500.0,8.767e-05,2]
[423226896,1779954640000,-431.11267338,9.041e-05,2]
[423226883,1779954640000,-500.0,8.767e-05,2]
[423226870,1779954640000,-1067.45341374,8.419e-05,7]
[423226881,1779954640000,-500.0,8.767e-05,2]
[423226855,1779954640000,-500.0,8.219e-05,2]
[423226856,1779954640000,-172.18270164,8.219e-05,2]
[423226857,1779954640000,-600.0,8.381e-05,2]
[423226858,1779954640000,-500.0,8.39e-05,2]
[423226860,1779954640000,-500.0,8.39e-05,2]
[423226859,1779954640000,-500.0,8.39e-05,2]
[423226866,1779954640000,-500.0,8.39e-05,2]
[423226861,1779954640000,-370.87809635,8.39e-05,2]